bitfinex/quotes_ETHUSD_20250802
["timestamp","ask_amount","ask_price","bid_price","bid_amount"]
[1754123516131,1.715,3507.0,3506.5,4.521]
[1754123516357,1.715,3507.0,3506.4,0.002]
[1754123516556,2.1852,3507.0,3506.4,0.002]
[1754123516733,1.715,3506.8,3506.5,4.52]
[1754123517134,0.4702,3506.7,3506.5,4.52]
[1754123517313,0.9265,3506.7,3506.4,0.002]
[1754123517512,1.715,3506.8,3506.4,0.002]
[1754123517810,2.6415,3506.6,3506.5,4.517]
[1754123518348,2.6415,3506.6,3506.5,4.519]
[1754123519849,31.715,3506.8,3506.4,0.002]
[1754123520052,1.715,3506.6,3506.4,0.002]
[1754123520208,31.715,3506.6,3506.5,4.516]
[1754123520413,31.715,3506.5,3506.4,0.002]
[1754123520647,32.6415,3506.5,3506.4,4.518]
[1754123521547,1.715,3506.5,3506.4,4.518]
[1754123521706,1.715,3506.5,3506.4,4.9687]
[1754123521911,1.715,3506.5,3506.4,4.517]
[1754123522244,2.1852,3506.5,3506.4,4.517]
[1754123522943,0.4563,3506.7,3506.4,4.517]
[1754123522944,1.715,3506.6,3506.4,4.517]
[1754123523550,1.715,3506.9,3506.5,0.4507]
[1754123523849,4.519,3507.9,3506.6,0.4507]
[1754123524145,30.0,3507.3,3506.6,0.4507]
[1754123524349,30.0,3507.3,3506.8,8.44822738]
[1754123524549,0.1424,3507.3,3506.9,4.9627]
[1754123524757,0.1424,3507.3,3506.9,4.512]
[1754123525064,1.715,3507.5,3507.0,9.36402738]
[1754123525259,0.1424,3507.4,3507.1,1.43035632]
[1754123525653,31.715,3507.8,3507.2,0.9158]
[1754123525874,0.1424,3507.7,3507.3,4.9617]
[1754123526018,0.4563,3508.2,3507.3,4.9617]
[1754123526019,0.4563,3508.2,3507.4,1.61290427]
[1754123526332,0.1424,3508.0,3507.5,9.04132738]
[1754123526521,0.1424,3508.0,3507.5,9.50642738]
[1754123526725,0.20986558,3508.0,3507.6,0.47920952]
[1754123526919,0.1424,3508.2,3507.7,4.6524]
[1754123527144,0.35558726,3508.2,3507.7,0.5931]
[1754123527344,4.51,3509.3,3507.8,4.509]
[1754123527345,0.9265,3508.1,3507.8,4.509]
[1754123527752,0.1424,3507.9,3507.8,4.509]
[1754123528673,1.715,3507.6,3506.8,0.002]
[1754123528978,31.715,3507.1,3506.8,0.002]
[1754123529283,0.1424,3506.9,3506.8,0.002]
[1754123529875,1.0689,3506.9,3506.8,0.002]
[1754123530469,33.1424,3506.9,3506.8,0.002]
[1754123530674,3.1424,3506.9,3506.8,0.002]
[1754123530839,33.1424,3506.9,3506.8,0.002]
[1754123531036,34.0689,3506.9,3506.8,0.002]
[1754123531240,4.0689,3506.9,3506.8,0.002]
[1754123531544,34.0689,3506.9,3506.8,0.002]
[1754123531749,36.93714707,3506.9,3506.8,0.002]
[1754123532269,38.65214707,3506.9,3506.8,0.002]
[1754123532575,45.65214707,3506.9,3506.8,0.002]
[1754123534069,42.7839,3506.9,3506.8,0.002]
[1754123534376,10.1424,3506.9,3506.8,0.002]
[1754123534576,7.1424,3506.9,3506.8,0.002]
[1754123536939,0.1424,3506.9,3506.8,0.4527]
[1754123537255,0.1424,3507.1,3506.8,0.4527]
[1754123537637,0.1424,3507.1,3506.8,0.002]
[1754123538454,1.0689,3507.1,3506.8,0.002]
[1754123540866,0.6126,3507.1,3506.8,0.002]
[1754123541473,0.1424,3507.1,3506.8,0.002]
[1754123542574,32.6354,3507.0,3506.8,0.002]
[1754123542754,33.1424,3506.9,3506.8,0.002]
[1754123543075,35.7778,3506.9,3506.8,0.002]
[1754123543974,0.1424,3506.9,3506.8,0.002]
[1754123544872,3.61717469,3508.2,3506.8,8.94302738]
[1754123544873,0.21667316,3508.2,3506.8,8.94302738]
[1754123545172,0.1424,3507.4,3506.9,0.4928]
[1754123545370,0.1424,3507.4,3507.0,1.40568274]
[1754123545579,0.1424,3507.4,3507.0,1.85708274]
[1754123545781,3.0,3508.0,3507.0,1.85708274]
[1754123545782,1.715,3508.0,3507.1,0.9442]
[1754123545942,0.21667316,3508.2,3507.3,8.44822738]
[1754123546244,0.1424,3508.0,3507.5,0.1424]
[1754123546748,0.1424,3508.0,3507.6,0.4928]
[1754123546942,0.1424,3508.0,3507.7,0.4928]
[1754123547142,0.21667316,3508.2,3507.7,0.4928]
[1754123547365,0.1424,3508.1,3507.7,0.4928]
[1754123552687,0.1434,3508.1,3507.7,0.4928]
[1754123552865,0.1434,3508.1,3507.5,1.54778274]
[1754123553704,30.0,3508.0,3507.6,4.507]
[1754123553900,1.715,3507.5,3504.6,0.4928]
[1754123554077,31.8574,3506.9,3505.9,0.1424]
[1754123554399,34.8574,3506.9,3505.9,4.5434]
[1754123554699,35.7778,3506.9,3505.9,4.5434]
[1754123555263,35.7778,3506.9,3505.8,0.4928]
[1754123555492,35.7778,3506.9,3506.0,4.569]
[1754123555794,35.7778,3506.9,3505.7,0.1424]
[1754123555974,35.7778,3506.9,3505.9,4.567]
[1754123556176,35.7778,3506.9,3505.8,4.566]
[1754123556375,35.7778,3506.9,3505.7,4.7074]
[1754123557189,35.7778,3506.9,3505.7,5.2002]
[1754123558902,35.7778,3506.9,3505.9,0.4928]
[1754123560505,42.7778,3506.9,3505.9,0.4928]
[1754123560805,43.45014254,3506.9,3505.9,0.4928]
[1754123561107,43.45014254,3506.9,3505.3,8.44822738]
[1754123561108,46.30166382,3506.9,3505.4,0.6352]
[1754123561681,43.45014254,3506.9,3505.4,0.6352]
[1754123561882,46.30166382,3506.9,3505.4,0.6352]
[1754123562079,46.85166382,3506.9,3505.4,0.4928]
[1754123562868,16.85166382,3506.9,3505.4,0.4928]
[1754123563070,46.85166382,3506.9,3505.4,0.4928]
[1754123563303,48.55314254,3506.9,3505.4,0.4928]
[1754123563487,48.55314254,3506.9,3505.2,0.5938]
[1754123563804,48.55314254,3506.9,3505.6,0.4928]
[1754123564004,51.40466382,3506.9,3505.3,0.4928]
[1754123564204,21.40466382,3506.9,3505.3,0.4928]
[1754123564407,51.40466382,3506.9,3505.5,0.4928]
[1754123564606,48.55314254,3506.9,3505.1,0.1424]
[1754123564911,48.00314254,3506.9,3506.0,0.4928]
[1754123565486,42.52974254,3506.9,3505.8,0.4514]
[1754123565691,42.52974254,3506.9,3506.2,0.4928]
[1754123565692,48.00114254,3506.9,3506.2,0.4928]
[1754123565905,48.00114254,3506.9,3505.9,0.4928]
[1754123566101,48.55114254,3506.9,3505.4,0.1424]
[1754123566307,48.55114254,3506.9,3505.7,0.4928]
[1754123566877,42.52974254,3506.9,3505.7,0.4928]
[1754123567106,48.00014254,3506.9,3506.0,0.4928]
[1754123568310,55.57014254,3506.9,3505.4,0.1424]
[1754123568477,55.57014254,3506.9,3505.8,0.4928]
[1754123568889,58.42166382,3506.9,3505.8,0.4928]
[1754123569092,58.42166382,3506.9,3505.5,0.4928]
[1754123569293,25.57014254,3506.9,3505.5,0.4928]
[1754123569500,55.57014254,3506.9,3505.5,0.4928]
[1754123570414,55.57014254,3506.9,3505.3,0.4514]
[1754123570615,58.42166382,3506.9,3505.5,0.4928]
[1754123570787,55.57014254,3506.9,3505.5,0.4928]
[1754123571298,58.42166382,3506.9,3505.7,0.4928]
[1754123571682,56.06294254,3506.9,3506.4,0.002]
[1754123571947,50.59254254,3506.9,3506.4,0.002]
[1754123572099,54.09274254,3506.9,3506.4,0.002]
[1754123572642,54.09274254,3506.9,3506.3,0.4627]
[1754123574800,54.09274254,3506.9,3506.5,0.4627]
[1754123577318,53.4204,3506.9,3506.8,0.4647]
[1754123577803,50.4204,3506.9,3506.8,0.4647]
[1754123578007,53.4204,3506.9,3506.8,0.4647]
[1754123579643,41.8574,3506.9,3506.8,0.002]
[1754123579849,11.8574,3506.9,3506.8,0.4647]
[1754123580375,10.1424,3506.9,3506.8,0.9324]
[1754123581224,7.0,3506.9,3506.8,0.9324]
[1754123581451,7.0,3506.9,3506.8,2.01286274]
[1754123584448,0.1424,3507.8,3506.8,2.01286274]
[1754123584657,0.1424,3507.8,3507.3,0.1424]
[1754123584854,0.1424,3507.8,3507.4,0.9304]
[1754123585158,0.1424,3507.8,3507.5,0.9304]
[1754123585454,0.1424,3507.8,3507.6,0.4627]
[1754123585828,0.1424,3507.8,3507.5,0.4677]
[1754123586032,0.1424,3507.8,3507.7,0.4627]
[1754123586458,0.1424,3507.8,3507.3,0.1424]
[1754123586643,0.001,3508.1,3507.0,0.4627]
[1754123586644,30.0,3507.6,3507.0,0.4627]
[1754123586832,0.1424,3507.4,3506.9,0.1424]
[1754123587032,0.1424,3507.0,3506.8,0.002]
[1754123588935,0.1424,3507.0,3506.9,0.4627]
[1754123589145,0.1424,3507.0,3506.9,0.9304]
[1754123589344,0.1424,3507.0,3506.9,0.4627]
[1754123589538,0.1424,3507.0,3506.8,0.002]
[1754123589763,30.0,3507.3,3506.8,0.002]
[1754123589926,0.1424,3507.1,3506.8,0.002]
[1754123590126,30.0,3507.0,3506.8,0.002]
[1754123590357,0.1424,3506.9,3506.8,0.002]
[1754123590869,0.1424,3507.1,3506.8,0.002]
[1754123591171,3.0,3507.5,3506.8,0.002]
[1754123591172,0.1424,3506.9,3506.8,0.002]
[1754123591374,1.0455,3506.9,3506.8,0.002]
[1754123591681,1.45005,3506.9,3506.8,0.002]
[1754123591829,3.16505,3506.9,3506.8,0.002]
[1754123592366,40.69505,3506.9,3506.8,0.002]
[1754123594783,47.69505,3506.9,3506.8,0.002]
[1754123599262,17.69505,3506.9,3506.8,0.002]
[1754123599586,47.69505,3506.9,3506.8,0.002]
[1754123605010,8.8574,3506.9,3506.8,0.9505]
[1754123605511,8.8574,3506.9,3506.8,0.002]
[1754123605700,38.8574,3506.9,3506.8,0.002]
[1754123606106,38.8574,3506.9,3506.8,0.4865]
[1754123608982,8.8574,3506.9,3506.8,0.4865]
[1754123612120,30.0,3506.4,3505.2,0.4845]
[1754123612432,1.715,3505.9,3505.2,0.4845]
[1754123612604,30.0,3505.6,3505.2,0.4845]
[1754123612806,1.715,3505.5,3505.2,0.4845]
[1754123613016,1.715,3505.5,3505.3,0.4845]
[1754123613421,1.715,3505.5,3504.9,0.464]
[1754123613422,2.10398788,3505.5,3504.9,0.4845]
[1754123613624,1.93248788,3505.5,3504.9,0.4845]
[1754123614434,1.93248788,3505.5,3505.0,5.47862475]
[1754123614616,1.93248788,3505.5,3505.1,0.4845]
[1754123615115,1.93248788,3505.5,3505.0,0.464]
[1754123615421,1.715,3505.3,3505.1,0.4845]
[1754123615731,1.715,3505.3,3504.9,0.4845]
[1754123616044,1.715,3505.3,3503.9,0.1125905]
[1754123616045,30.0,3505.2,3503.9,0.1125905]
[1754123616340,1.715,3504.7,3503.9,0.1125905]
[1754123616530,3.0,3504.4,3503.9,0.1125905]
[1754123616726,33.0,3504.2,3503.9,0.1125905]
[1754123616928,30.0,3504.1,3503.9,0.1125905]
[1754123617120,30.9117,3504.1,3503.9,0.1125905]
[1754123617324,3.0,3504.2,3503.9,0.1125905]
[1754123617325,4.516,3506.6,3504.0,9.81466811]
[1754123617524,0.461,3506.5,3504.9,8.45316421]
[1754123617726,7.0,3505.7,3505.4,8.45316421]
[1754123617966,7.0,3505.7,3505.5,2.01055367]
[1754123618125,7.0,3505.7,3505.5,0.9485]
[1754123618331,7.0,3505.7,3505.6,2.34416642]
[1754123619712,7.0,3505.7,3505.6,0.9485]
[1754123620250,7.0,3505.7,3505.4,8.45316421]
[1754123620472,7.0,3505.7,3505.5,0.9485]
[1754123620625,3.0,3505.5,3504.4,0.4845]
[1754123620820,30.0,3505.4,3504.4,0.4845]
[1754123621087,30.0,3505.5,3504.5,0.464]
[1754123621252,3.0,3505.6,3504.6,0.4845]
[1754123621439,30.0,3505.8,3504.9,8.45316421]
[1754123621756,3.0,3505.5,3504.1,0.4845]
[1754123622082,30.0,3504.9,3503.9,0.1125905]
[1754123622214,30.0,3504.1,3503.9,0.1125905]
[1754123622523,0.1424,3504.0,3503.9,0.1125905]
[1754123622727,1.0541,3504.0,3503.9,0.1125905]
[1754123623056,0.1424,3504.0,3503.9,0.1125905]
[1754123623860,1.42124,3504.0,3503.9,0.1125905]
[1754123624059,32.7691,3504.0,3503.9,0.1125905]
[1754123624231,36.53782301,3504.0,3503.9,0.1125905]
[1754123624635,35.98782301,3504.0,3503.9,0.1125905]
[1754123625673,34.27282301,3504.0,3503.9,0.1125905]
[1754123626074,0.21872301,3504.0,3503.9,0.1125905]
[1754123626262,0.36112301,3504.0,3503.9,0.1125905]
[1754123626583,34.0541,3504.0,3503.9,0.1125905]
[1754123626872,43.28634707,3504.0,3503.9,0.1125905]
[1754123627076,43.83634707,3504.0,3503.9,0.1125905]
[1754123627261,44.05584189,3504.0,3503.9,0.1125905]
[1754123628337,47.62331696,3504.0,3503.9,0.1125905]
[1754123628540,44.05584189,3504.0,3503.9,0.1125905]
[1754123629490,46.90972316,3504.0,3502.9,0.03327]
[1754123629635,46.90972316,3504.0,3500.4,7.43733316]
[1754123629636,0.55,3503.3,3500.9,0.4845]
[1754123629839,1.715,3502.1,3500.9,0.4845]
[1754123630090,30.0,3501.8,3500.9,0.4845]
[1754123630385,30.0,3501.7,3500.7,0.4845]
[1754123630584,3.0,3501.5,3500.7,2.16839974]
[1754123631291,4.666,3501.4,3500.4,0.464]
[1754123631442,4.666,3501.4,3500.1,8.5671621]
[1754123631443,4.666,3501.4,3500.3,0.4845]
[1754123631901,4.666,3501.4,3500.3,0.9415]
[1754123632057,4.666,3501.8,3500.6,8.45316421]
[1754123632402,30.0,3501.4,3500.7,1.42297642]
[1754123632712,30.0,3501.4,3500.7,0.4836]
[1754123633008,11.665,3501.5,3500.1,0.11399789]
[1754123633009,30.0,3501.2,3500.1,0.59759789]
[1754123633865,30.0,3501.0,3500.1,0.59759789]
[1754123634060,30.0,3501.4,3500.2,0.95077621]
[1754123634290,30.0,3501.2,3500.3,0.457]
[1754123634477,30.0,3501.4,3500.5,8.45316421]
[1754123635197,30.0,3501.3,3500.5,8.45316421]
[1754123635396,30.0,3501.3,3500.3,0.9406]
[1754123635595,30.0,3501.3,3500.4,0.66803741]
[1754123635904,4.673,3501.2,3500.4,0.66803741]
[1754123636141,0.4606,3501.4,3500.4,0.66803741]
[1754123636142,3.4606,3501.4,3500.4,0.66803741]
[1754123636305,0.4606,3501.4,3500.4,0.66803741]
[1754123636626,3.0,3500.9,3500.1,0.11399789]
[1754123636920,30.0,3500.4,3500.1,0.11399789]
[1754123637214,30.0,3500.3,3500.1,0.11399789]
[1754123637414,0.8932,3500.3,3500.1,0.11399789]
[1754123637619,30.0,3500.2,3500.1,0.11399789]
[1754123637818,4.732,3500.3,3500.1,0.11399789]
[1754123638114,4.731,3500.4,3500.1,0.11399789]
[1754123638314,35.6232,3500.4,3500.1,0.11399789]
[1754123638613,30.0,3500.2,3500.1,0.11399789]
[1754123638990,0.8932,3500.2,3500.1,0.11399789]
[1754123639317,30.0,3500.3,3500.1,0.11399789]
[1754123639608,4.8902,3500.2,3500.1,0.11399789]
[1754123639811,5.7834,3500.2,3500.1,0.11399789]
[1754123640431,35.7834,3500.2,3500.1,0.11399789]
[1754123641227,42.05844707,3500.2,3500.1,0.11399789]
[1754123641400,39.02644707,3500.2,3500.1,0.11399789]
[1754123641592,43.77444707,3500.2,3500.1,0.11399789]
[1754123642302,46.63142667,3500.2,3500.1,0.11399789]
[1754123642692,46.78057631,3500.2,3500.1,0.11399789]
[1754123643087,39.17559671,3500.2,3500.1,0.11399789]
[1754123643288,30.0,3500.2,3500.1,0.11399789]
[1754123643492,30.0,3500.3,3500.1,0.11399789]
[1754123643898,0.9745875,3500.5,3500.1,0.11399789]
[1754123643899,31.715,3500.2,3500.1,0.11399789]
[1754123644131,0.9745875,3500.5,3500.1,0.11399789]
[1754123644306,0.9745875,3500.5,3500.1,0.59759789]
[1754123644633,0.9745875,3500.5,3500.2,0.9406]
[1754123644808,0.9745875,3500.5,3500.3,0.95077621]
[1754123645007,0.9745875,3500.5,3500.4,0.9406]
[1754123645215,0.9745875,3500.5,3500.1,0.11399789]
[1754123645614,30.8932,3500.4,3500.1,0.11399789]
[1754123645815,30.0,3500.4,3500.1,0.11399789]
[1754123646151,30.0,3500.3,3500.1,0.11399789]
[1754123646428,4.794,3500.4,3500.1,0.11399789]
[1754123646591,4.794,3500.4,3500.2,0.4836]
[1754123647299,31.715,3500.2,3500.1,0.11399789]
[1754123647508,40.9552,3500.2,3500.1,0.11399789]
[1754123648043,40.9552,3500.2,3498.2,0.51218613]
[1754123648044,3.0,3499.6,3498.2,0.51218613]
[1754123648208,30.0,3499.3,3498.2,0.4836]
[1754123648414,30.0,3499.1,3498.2,0.4836]
[1754123648649,30.0,3498.9,3498.2,0.4836]
[1754123648863,4.804,3498.8,3498.2,0.4836]
[1754123649009,4.803,3499.0,3498.2,0.4836]
[1754123649214,4.804,3499.0,3498.3,1.39637642]
[1754123649466,0.57685875,3500.3,3498.9,8.45316421]
[1754123649613,7.815,3500.4,3499.0,0.9406]
[1754123649816,3.0,3500.2,3498.9,8.45316421]
[1754123650022,4.814,3500.2,3499.1,0.9406]
[1754123650226,4.814,3500.2,3499.2,1.87997642]
[1754123650427,30.0,3500.1,3499.2,1.87997642]
[1754123650625,4.814,3500.2,3497.8,0.457]
[1754123650626,30.0,3499.2,3497.8,0.457]
[1754123650822,5.6082,3500.0,3497.8,0.457]
[1754123650823,3.0,3499.8,3498.5,8.45316421]
[1754123651077,30.0,3499.7,3498.6,0.9406]
[1754123651283,0.1432,3499.4,3498.9,0.1432]
[1754123651882,0.1432,3499.4,3498.0,4.85]
[1754123651883,0.4606,3501.1,3499.0,9.4223438]
[1754123652025,4.849,3500.3,3499.1,1.88283438]
[1754123652231,4.859,3500.3,3499.3,8.45316421]
[1754123652448,0.2162621,3500.6,3499.4,0.9406]
[1754123652745,5.0752621,3500.6,3499.5,0.9406]
[1754123653055,30.0,3500.4,3499.4,0.4836]
[1754123653259,2.86824707,3500.3,3498.2,4.408945]
[1754123653458,2.6895875,3500.5,3498.2,0.858945]
[1754123653459,4.715,3499.7,3498.2,0.858945]
[1754123653628,31.715,3499.4,3498.2,8.45316421]
[1754123653829,30.0,3499.2,3498.3,0.9406]
[1754123654329,30.0,3499.0,3498.1,0.4836]
[1754123654531,30.0,3498.9,3497.8,0.4836]
[1754123654754,31.715,3498.7,3497.5,0.457]
[1754123654952,30.0,3498.5,3497.5,0.457]
[1754123656289,4.861,3498.4,3497.5,0.457]
[1754123656580,4.861,3498.4,3497.6,0.21749653]
[1754123656781,4.859,3498.3,3497.7,0.51219021]
[1754123656948,4.859,3498.3,3497.2,13.59813874]
[1754123656949,30.0,3498.1,3497.2,7.48565315]
[1754123657150,30.0,3497.9,3496.8,0.03327]
[1754123657346,30.0,3497.7,3496.8,0.03327]
[1754123657547,30.0,3497.5,3496.8,0.03327]
[1754123657964,0.4326,3497.5,3496.8,0.03327]
[1754123658173,0.4606,3497.4,3496.8,0.03327]
[1754123658701,30.0,3497.2,3496.8,0.03327]
[1754123658863,0.8932,3497.1,3496.8,0.03327]
[1754123659230,30.0,3496.9,3496.8,0.03327]
[1754123659428,34.876,3496.9,3496.8,0.03327]
[1754123659628,32.6082,3496.9,3496.8,0.03327]
[1754123659868,37.4922,3496.9,3496.8,0.03327]
[1754123660073,40.4922,3496.9,3496.8,0.03327]
[1754123660262,1.715,3496.7,3493.8,0.4836]
[1754123660465,3.0,3496.8,3493.8,0.4836]
[1754123660466,30.0,3496.0,3493.9,0.9406]
[1754123660775,30.0,3495.7,3494.0,0.9406]
[1754123660974,30.0,3495.8,3494.4,6.11248559]
[1754123661277,6.11248559,3497.9,3494.5,7.05308559]
[1754123661278,30.4606,3496.1,3494.5,7.05308559]
[1754123661430,0.21918276,3495.9,3494.6,0.4836]
[1754123661630,4.948,3496.0,3494.6,0.4836]
[1754123661896,0.9471,3495.9,3494.6,0.4836]
[1754123662178,0.1432,3495.3,3494.8,0.1432]
[1754123662385,0.1432,3495.3,3494.4,6.11248559]
[1754123662386,0.9471,3495.2,3490.9,2.86452129]
[1754123662628,30.0,3495.0,3492.7,6.11248559]
[1754123662793,30.0,3494.8,3493.9,6.11248559]
[1754123662993,30.0,3495.5,3494.0,1.49544856]
[1754123663221,0.4951,3496.1,3494.5,6.11248559]
[1754123663422,0.4951,3496.1,3494.6,0.02861557]
[1754123663578,0.452,3496.2,3494.6,5.90981557]
[1754123663783,0.452,3496.2,3494.7,1.65493012]
[1754123664218,0.452,3496.2,3494.8,5.012]
[1754123664421,4.997,3496.7,3495.2,6.11248559]
[1754123664422,0.452,3496.7,3495.2,6.11248559]
[1754123664623,0.452,3497.4,3496.4,6.11248559]
[1754123664918,30.0,3498.0,3496.5,0.4527]
[1754123665224,0.859676,3498.5,3496.5,0.4527]
[1754123665225,0.859676,3498.5,3497.1,3.0]
[1754123665391,0.859676,3498.5,3497.6,6.11248559]
[1754123665590,0.4951,3499.4,3498.2,6.11248559]
[1754123666359,0.4951,3499.8,3498.3,0.4527]
[1754123666564,30.0,3499.7,3498.4,0.69966856]
[1754123666767,30.0,3500.3,3498.8,6.11248559]
[1754123666944,30.0,3500.3,3498.9,5.04758041]
[1754123667148,0.21046378,3500.3,3499.0,0.4527]
[1754123667465,0.9745875,3500.5,3499.4,6.11248559]
[1754123667672,0.9745875,3500.5,3499.5,0.4527]
[1754123667871,0.9745875,3500.5,3499.5,0.8842]
[1754123668081,0.9745875,3500.5,3500.0,6.11248559]
[1754123668377,0.9745875,3500.5,3500.1,5.4717]
[1754123668560,0.9745875,3500.5,3500.2,0.02856979]
[1754123668773,0.9745875,3500.5,3500.3,0.8842]
[1754123669080,0.9745875,3500.5,3500.4,0.8842]
[1754123669747,0.9745875,3500.5,3500.4,1.4342]
[1754123670183,30.0,3502.5,3500.5,0.55]
[1754123670480,0.001,3502.9,3500.9,6.11248559]
[1754123670651,30.0,3502.8,3501.5,6.11248559]
[1754123670850,30.0,3502.8,3501.6,0.91275837]
[1754123671061,30.0,3502.8,3501.7,5.006]
[1754123671248,0.001,3502.9,3501.7,5.006]
[1754123671448,0.001,3502.9,3502.1,6.11248559]
[1754123671793,30.0,3502.8,3502.2,5.004]
[1754123671935,0.001,3502.9,3502.1,5.004]
[1754123672673,0.1424,3502.7,3502.2,0.1424]
[1754123673186,30.0,3502.6,3500.5,2.8348]
[1754123673378,3.55,3502.4,3499.2,6.11248559]
[1754123673675,30.0,3501.4,3499.5,6.11248559]
[1754123673890,30.0,3501.2,3499.5,6.11248559]
[1754123674089,0.1432,3500.7,3500.2,0.1432]
[1754123674254,0.1432,3500.7,3500.2,0.4527]
[1754123674449,0.1432,3500.7,3500.3,0.54657]
[1754123674708,0.1432,3500.7,3500.4,0.4527]
[1754123674856,0.452,3501.3,3500.4,0.4527]
[1754123675164,0.1432,3501.1,3500.6,0.1432]
[1754123675570,0.1432,3501.1,3500.6,0.5959]
[1754123676601,0.452,3501.0,3500.6,0.1432]
[1754123676830,30.0,3500.6,3499.7,5.001]
[1754123676964,30.0,3500.4,3499.8,0.54537]
[1754123677167,0.1432,3500.3,3499.8,0.54537]
[1754123677677,30.0,3500.1,3498.8,0.858874]
[1754123677863,3.0,3499.8,3497.7,0.4527]
[1754123678063,3.0,3499.4,3497.8,5.012]
[1754123678281,30.0,3499.2,3497.8,5.012]
[1754123678462,30.0,3499.2,3497.9,1.15771856]
[1754123678894,30.0,3499.2,3498.0,0.4527]
[1754123679194,0.859247,3500.3,3498.0,0.4527]
[1754123679195,0.452,3499.8,3498.0,0.4527]
[1754123679397,3.0,3499.6,3498.0,0.4527]
[1754123679972,0.452,3499.8,3498.0,0.4527]
[1754123680176,0.452,3499.8,3498.1,0.70539186]
[1754123680471,0.452,3499.8,3498.2,0.4527]
[1754123680780,3.0,3499.6,3498.2,0.4527]
[1754123680984,0.452,3499.8,3498.2,0.4527]
[1754123681168,3.0,3499.6,3498.2,0.4527]
[1754123681631,0.452,3499.8,3498.2,0.4527]
[1754123681843,3.0,3499.4,3498.2,0.4527]
[1754123682045,0.452,3499.8,3498.2,0.4527]
[1754123682204,30.0,3499.7,3498.2,0.4527]
[1754123683146,30.0,3499.7,3498.2,0.8842]
[1754123683363,30.0,3499.7,3498.3,0.15895919]
[1754123683636,0.452,3499.6,3498.3,0.15895919]
[1754123683837,0.452,3499.6,3498.4,0.4527]
[1754123684054,0.859076,3501.1,3498.4,0.4527]
[1754123684055,3.0,3499.9,3498.5,4.993]
[1754123684224,0.452,3500.1,3498.6,0.8842]
[1754123684425,30.0,3500.4,3498.7,1.04042]
[1754123684626,3.0,3500.1,3498.7,1.04042]
[1754123684817,3.0,3500.1,3498.8,0.4527]
[1754123685017,0.452,3500.3,3498.8,0.4527]
[1754123686351,3.0,3500.1,3498.8,0.4527]
[1754123686556,0.452,3500.3,3498.9,0.147192]
[1754123686851,0.452,3500.3,3499.0,0.4527]
[1754123687332,30.0,3500.6,3499.0,0.8842]
[1754123687556,30.0,3500.6,3499.1,0.48127877]
[1754123687709,0.2177773,3501.2,3499.1,0.91277877]
[1754123687903,0.1432,3500.9,3500.3,0.1432]
[1754123688117,0.1432,3501.0,3500.3,4.977]
[1754123688346,0.1432,3501.0,3500.5,0.1432]
[1754123688874,0.452,3501.6,3500.6,0.4527]
[1754123689075,0.1432,3501.3,3500.6,0.4527]
[1754123689776,0.452,3501.6,3500.6,0.4527]
[1754123689777,0.21042785,3502.0,3500.6,0.8842]
[1754123689949,0.452,3502.1,3500.6,0.8842]
[1754123689950,0.1424,3501.7,3500.6,1.48749682]
[1754123690161,0.452,3501.7,3500.6,1.05599682]
[1754123690472,0.1424,3501.5,3500.6,1.05599682]
[1754123690641,0.5944,3501.7,3500.6,1.03479682]
[1754123690976,0.452,3502.3,3500.6,1.63069682]
[1754123691183,0.1424,3502.0,3500.6,1.63069682]
[1754123691770,0.1424,3502.0,3500.6,1.65926335]
[1754123691967,0.452,3502.3,3500.6,1.65926335]
[1754123692239,0.1424,3502.1,3500.6,1.63069682]
[1754123692447,0.1424,3502.1,3500.6,2.18069682]
[1754123692644,0.452,3502.3,3500.6,2.66126335]
[1754123692963,0.452,3502.3,3500.6,2.63269682]
[1754123693485,0.452,3502.3,3500.6,2.66126335]
[1754123694759,0.452,3502.3,3500.6,2.63269682]
[1754123695161,0.1424,3502.4,3500.6,2.63269682]
[1754123695365,0.4388,3501.9,3500.6,2.63269682]
[1754123696807,0.4388,3501.9,3500.6,2.66126335]
[1754123697194,0.4388,3501.9,3500.6,2.63269682]
[1754123697389,0.4388,3501.9,3500.6,2.66126335]
[1754123698113,0.4388,3501.9,3500.6,2.63269682]
[1754123698618,0.4388,3501.9,3500.6,2.66126335]
[1754123698771,0.4388,3501.9,3500.6,8.98749987]
[1754123700917,0.4388,3501.5,3500.6,8.00599987]
[1754123701805,0.4388,3501.5,3500.6,12.91999987]
[1754123702324,0.4388,3501.9,3500.6,13.38389987]
[1754123703077,0.2169957,3502.7,3500.6,1.05529682]
[1754123703323,0.4398,3500.7,3500.0,0.4619]
[1754123703507,0.4398,3500.7,3500.1,5.117996]
[1754123703905,0.4398,3500.7,3500.2,4.901]
[1754123704407,0.001,3500.7,3500.2,4.901]
[1754123704599,0.4388,3500.6,3500.2,4.901]
[1754123704804,0.4388,3500.6,3500.3,0.4901]
[1754123705001,0.4388,3500.5,3500.3,0.4901]
[1754123705203,0.4388,3500.4,3499.6,6.866]
[1754123705503,0.4388,3500.4,3499.7,4.902]
[1754123706642,0.001,3500.7,3499.9,3.0]
[1754123706841,0.4388,3500.4,3500.1,3.0]
[1754123707007,0.001,3500.7,3500.2,1.0897]
[1754123707403,0.001,3500.7,3500.2,1.5516]
[1754123707804,0.001,3500.7,3500.4,6.35480305]